bitfinex/quotes_SOLUSD_20250217
["timestamp","ask_amount","ask_price","bid_price","bid_amount"]
[1739785809841,59.28680362,184.86,184.81,0.03]
[1739785809842,10.50977145,184.82,184.81,0.03]
[1739785810140,11.31939782,184.82,184.81,0.03]
[1739785810747,15.10679782,184.82,184.81,0.03]
[1739785813639,7.64987,184.81,184.79,0.063]
[1739785813940,230.11939782,184.8,184.79,0.063]
[1739785814142,229.30977145,184.8,184.79,0.063]
[1739785814346,230.30977145,184.8,184.79,0.063]
[1739785814926,234.09757145,184.8,184.79,0.063]
[1739785817243,0.37647,184.77,184.74,0.063]
[1739785817436,10.50977145,184.75,184.74,0.063]
[1739785817729,1.0,184.69,184.68,0.03]
[1739785817934,220.17647,184.68,184.64,0.03]
[1739785818261,219.17647,184.68,184.64,0.03]
[1739785818556,229.30977145,184.68,184.64,0.03]
[1739785818763,0.37647,184.68,184.64,13.95440145]
[1739785818932,0.37647,184.68,184.65,10.13330145]
[1739785819431,0.37647,184.68,184.65,20.0]
[1739785821037,0.37647,184.68,184.65,23.7908]
[1739785825257,0.37647,184.68,184.65,3.7908]
[1739785826557,82.3,184.72,184.67,10.16330145]
[1739785826865,146.63330145,184.74,184.69,10.13330145]
[1739785826866,136.5,184.74,184.69,10.13330145]
[1739785827054,82.3,184.75,184.7,10.13330145]
[1739785827252,82.3,184.75,184.71,10.13330145]
[1739785827564,0.37647,184.74,184.71,10.13330145]
[1739785828075,0.37647,184.74,184.72,3.7895]
[1739785828955,0.37647,184.74,184.71,3.7897]
[1739785832585,0.37647,184.74,184.69,10.13330145]
[1739785832890,0.37647,184.74,184.7,3.7899]
[1739785833192,0.37647,184.74,184.67,13.44184853]
[1739785833193,0.12549,184.72,184.67,3.8205]
[1739785833383,0.37647,184.71,184.67,3.8205]
[1739785833969,0.37647,184.71,184.67,17.23234853]
[1739785835794,0.37647,184.71,184.67,17.23234853]
[1739785836987,10.13330145,184.74,184.68,17.20204853]
[1739785837202,92.43330145,184.75,184.68,27.33534998]
[1739785837404,0.37647,184.74,184.68,27.33534998]
[1739785837718,0.37647,184.74,184.7,10.13330145]
[1739785838214,0.43947,184.74,184.68,13.92350145]
[1739785838371,0.37647,184.7,184.67,0.03]
[1739785838567,0.12549,184.68,184.67,0.03]
[1739785840014,0.12549,184.69,184.67,0.03]
[1739785842812,0.25098,184.68,184.67,0.03]
[1739785845296,0.37647,184.68,184.67,0.03]
[1739785845605,14.30007145,184.68,184.67,0.03]
[1739785846092,150.80007145,184.68,184.67,0.03]
[1739785846294,191.33327725,184.68,184.67,0.03]
[1739785847106,55.83327725,184.68,184.67,0.03]
[1739785847315,56.64290362,184.68,184.67,0.03]
[1739785847689,58.27550362,184.68,184.67,0.03]
[1739785848104,57.27550362,184.68,184.67,0.03]
[1739785848413,16.74229782,184.68,184.67,0.03]
[1739785849630,15.93267145,184.68,184.67,0.03]
[1739785851110,16.74229782,184.68,184.67,0.03]
[1739785851589,58.27550362,184.68,184.67,0.03]
[1739785853716,18.02867145,184.67,184.66,0.063]
[1739785854915,21.81917145,184.67,184.66,0.063]
[1739785855221,1.37647,184.65,184.64,0.03]
[1739785855385,12.31939782,184.65,184.64,0.03]
[1739785856790,16.11029782,184.65,184.64,0.03]
[1739785856991,15.11029782,184.65,184.64,0.03]
[1739785857596,14.30067145,184.65,184.64,0.03]
[1739785859024,15.30067145,184.65,184.64,0.03]
[1739785859418,14.30067145,184.65,184.64,0.03]
[1739785859919,15.30067145,184.65,184.64,0.03]
[1739785860540,14.30067145,184.65,184.64,0.03]
[1739785862701,10.50977145,184.65,184.64,0.03]
[1739785863118,14.30067145,184.65,184.64,0.03]
[1739785863306,0.12549,184.63,184.62,0.063]
[1739785863506,1.18609637,184.63,184.62,0.063]
[1739785863704,4.97739637,184.63,184.62,0.063]
[1739785863911,15.11069782,184.63,184.62,0.063]
[1739785864703,14.30107145,184.63,184.62,0.063]
[1739785865427,15.11069782,184.63,184.62,0.063]
[1739785866810,14.30107145,184.63,184.62,0.063]
[1739785867012,10.50977145,184.63,184.62,0.063]
[1739785867429,14.30107145,184.63,184.62,0.063]
[1739785868818,0.37647,184.63,184.62,0.063]
[1739785870408,10.50977145,184.63,184.62,0.063]
[1739785870633,14.30107145,184.63,184.62,0.063]
[1739785873130,15.11069782,184.63,184.62,0.063]
[1739785875439,4.16777,184.63,184.62,0.063]
[1739785875739,14.30107145,184.63,184.62,0.063]
[1739785876541,0.37647,184.63,184.62,0.063]
[1739785876713,0.063,184.65,184.62,0.063]
[1739785876918,0.063,184.65,184.63,11.64560145]
[1739785877125,0.063,184.65,184.64,23.54514998]
[1739785878638,0.063,184.65,184.64,33.05591855]
[1739785878845,0.063,184.65,184.64,13.41184853]
[1739785879158,16.29244002,184.65,184.64,3.28136267]
[1739785880782,0.37647,184.64,184.62,0.063]
[1739785880965,16.22944002,184.63,184.62,0.063]
[1739785881329,152.72944002,184.63,184.62,0.063]
[1739785881546,16.22944002,184.63,184.62,0.063]
[1739785882340,17.22944002,184.63,184.62,0.063]
[1739785882731,21.02074002,184.63,184.62,0.063]
[1739785884047,34.43258855,184.63,184.62,0.063]
[1739785884364,1.37647,184.6,184.52,20.0]
[1739785884575,0.37647,184.54,184.51,20.0]
[1739785885767,16.22944002,184.54,184.5,20.0]
[1739785886454,16.22944002,184.54,184.52,20.0]
[1739785886455,0.37647,184.54,184.52,20.0]
[1739785886649,0.37647,184.54,184.48,15.88297002]
[1739785887056,0.12549,184.57,184.52,20.0]
[1739785887863,0.12549,184.57,184.52,35.85297002]
[1739785888066,15.85297002,184.62,184.56,20.0]
[1739785888256,0.37647,184.61,184.56,20.0]
[1739785888881,0.37647,184.61,184.56,35.85297002]
[1739785889058,0.063,184.65,184.59,15.85297002]
[1739785889265,0.063,184.65,184.6,35.85297002]
[1739785889695,0.063,184.65,184.59,15.85297002]
[1739785889862,0.37647,184.63,184.57,29.26481855]
[1739785890060,16.22944002,184.63,184.56,19.64557002]
[1739785890261,0.25098,184.61,184.58,20.0]
[1739785891557,0.25098,184.61,184.59,3.29686697]
[1739785891960,15.85297002,184.64,184.59,3.29686697]
[1739785892297,0.063,184.65,184.6,15.85297002]
[1739785892485,0.063,184.65,184.61,29.26481855]
[1739785892780,0.063,184.65,184.62,15.85297002]
[1739785893879,0.063,184.65,184.64,33.05591855]
[1739785894178,0.063,184.65,184.64,34.71031855]
[1739785894375,0.063,184.65,184.64,38.00718552]
[1739785898798,0.063,184.68,184.67,33.41184853]
[1739785898964,0.063,184.68,184.67,49.26481855]
[1739785900274,0.063,184.68,184.67,56.35218552]
[1739785900969,0.063,184.68,184.67,137.85218552]
[1739785901976,0.063,184.68,184.67,155.70515554]
[1739785902265,0.063,184.74,184.7,1.0]
[1739785902488,0.063,184.74,184.73,29.26481855]
[1739785903486,0.063,184.74,184.73,33.05411855]
[1739785904370,0.063,184.74,184.73,34.56501855]
[1739785905187,0.063,184.74,184.73,37.83666267]
[1739785908568,0.063,184.74,184.73,119.33666267]
[1739785908792,0.063,184.74,184.73,116.06501855]
[1739785912081,0.063,184.74,184.73,119.32450608]
[1739785912793,0.063,184.8,184.77,21.0]
[1739785912996,0.063,184.8,184.79,29.26481855]
[1739785915096,0.063,184.8,184.79,33.05281855]
[1739785920192,0.063,184.8,184.79,29.26481855]
[1739785920392,0.063,184.8,184.79,15.85297002]
[1739785920690,0.063,184.8,184.74,19.64207002]
[1739785921004,0.063,184.8,184.77,29.26481855]
[1739785921314,0.063,184.8,184.79,15.85297002]
[1739785922198,0.063,184.8,184.79,29.26481855]
[1739785922594,0.063,184.8,184.79,33.05281855]
[1739785926705,0.063,184.8,184.79,114.55281855]
[1739785931087,0.063,184.8,184.79,117.79912493]
[1739785932501,0.063,184.8,184.79,118.79912493]
[1739785937811,0.063,184.8,184.79,7.03430638]
[1739785938002,0.063,184.8,184.79,3.24630638]
[1739785938197,0.063,184.8,184.79,32.51112493]
[1739785938407,0.063,184.8,184.79,36.29912493]
[1739785938599,0.063,184.8,184.79,37.29912493]
[1739785939010,0.063,184.8,184.79,119.79912493]
[1739785939213,0.063,184.84,184.83,49.26481855]
[1739785940714,0.063,184.84,184.83,53.05201855]
[1739785941296,0.063,184.84,184.83,56.29832493]
[1739785943304,0.063,184.84,184.83,137.79832493]
[1739785943998,0.063,184.84,184.83,134.01112493]
[1739785944611,0.063,184.84,184.83,3.24630638]
[1739785945233,0.063,184.84,184.83,13.37630468]
[1739785945639,0.063,184.84,184.83,3.24630638]
[1739785947429,1.5691,184.84,184.83,3.24630638]
[1739785950239,1.94557,184.84,184.83,3.24630638]
[1739785950531,27.9343532,184.84,184.83,3.24630638]
[1739785951737,0.37647,184.83,184.76,19.07518958]
[1739785951943,16.2053532,184.83,184.76,19.07518958]
[1739785952125,0.37647,184.83,184.77,15.8288832]
[1739785952447,0.37647,184.83,184.78,15.8288832]
[1739785952746,0.37647,184.83,184.79,15.8288832]
[1739785952945,0.37647,184.83,184.79,19.07518958]
[1739785954115,0.37647,184.83,184.8,3.24630638]
[1739785955636,0.37647,184.83,184.81,3.24630638]
[1739785956110,0.43947,184.83,184.81,3.24630638]
[1739785956815,4.22667,184.83,184.81,3.24630638]
[1739785957725,4.22667,184.83,184.77,29.27073173]
[1739785958031,4.22667,184.83,184.77,0.03]
[1739785958211,4.22667,184.83,184.77,15.8588832]
[1739785959313,4.22667,184.83,184.78,3.29341446]
[1739785960836,20.0555532,184.83,184.78,3.29341446]
[1739785961028,15.8288832,184.82,184.79,3.29341446]
[1739785961640,0.37647,184.81,184.79,3.29341446]
[1739785962141,0.37647,184.81,184.8,3.29341446]
[1739785962536,4.16407,184.81,184.8,3.29341446]
[1739785963358,4.16407,184.81,184.77,0.03]
[1739785963741,19.9929532,184.81,184.77,0.03]
[1739785964419,19.9929532,184.81,184.78,3.29553952]
[1739785964930,0.25098,184.79,184.78,3.29553952]
[1739785965437,0.37647,184.79,184.78,3.29553952]
[1739785966240,4.03918,184.78,184.77,0.03]
[1739785967947,4.03918,184.78,184.77,3.32351925]
[1739785970545,4.16467,184.78,184.77,3.32351925]
[1739785971452,4.16467,184.78,184.77,0.03]
[1739785974645,14.30553996,184.78,184.77,0.03]
[1739785975049,4.16467,184.78,184.77,0.03]
[1739785975658,14.30553996,184.78,184.77,0.03]
[1739785975847,4.16467,184.78,184.77,0.03]
[1739785977451,14.30553996,184.78,184.77,0.03]
[1739785978260,4.16467,184.78,184.77,0.03]
[1739785981962,14.30553996,184.78,184.77,0.03]
[1739785982343,151.80553996,184.78,184.77,0.03]
[1739785982535,157.83793996,184.78,184.77,0.03]
[1739785983963,156.83793996,184.78,184.77,0.03]
[1739785984464,157.83793996,184.78,184.77,0.03]
[1739785985563,158.83793996,184.78,184.77,0.03]
[1739785986063,200.9205198,184.78,184.77,0.03]
[1739785986272,200.9205198,184.78,184.68,0.03]
[1739785986273,10.51733996,184.7,184.68,0.03]
[1739785987364,0.80962637,184.74,184.68,10.17086996]
[1739785987678,20.0,184.75,184.68,10.17086996]
[1739785987965,10.95049633,184.74,184.68,0.03]
[1739785988151,0.37647,184.72,184.68,0.03]
[1739785988470,10.51733996,184.72,184.68,0.03]
[1739785988642,11.32696633,184.72,184.68,0.03]
[1739785988838,0.12549,184.7,184.68,0.03]
[1739785989045,0.25098,184.7,184.68,0.03]
[1739785989649,0.25098,184.71,184.68,0.03]
[1739785990948,0.12549,184.7,184.68,0.03]
[1739785994965,0.12549,184.7,184.69,3.29219011]
[1739786004684,0.25098,184.71,184.69,3.32219011]
[1739786005054,82.3,184.72,184.69,17.25316007]
[1739786005259,102.26166996,184.78,184.7,10.14086996]
[1739786005455,0.37647,184.77,184.7,10.14086996]
[1739786005675,10.51733996,184.77,184.69,17.25316007]
[1739786006281,0.12549,184.75,184.69,17.25316007]
[1739786006479,0.37647,184.75,184.69,13.46306007]
[1739786006886,0.37647,184.75,184.7,3.29219011]
[1739786007185,0.12549,184.72,184.7,3.29219011]
[1739786007371,0.25098,184.71,184.7,3.29219011]
[1739786009684,82.3,184.73,184.7,3.29219011]
[1739786010085,0.25098,184.72,184.7,3.29219011]
[1739786011186,82.3,184.73,184.7,3.29219011]
[1739786011379,82.3,184.73,184.7,17.22296007]
[1739786011585,82.3,184.73,184.71,13.43306007]
[1739786011892,0.25098,184.74,184.71,3.29219011]
[1739786012365,0.25098,184.75,184.71,3.29219011]
[1739786012566,0.12549,184.74,184.71,3.29219011]
[1739786012766,10.26635996,184.74,184.71,3.29219011]
[1739786012966,14.05555996,184.74,184.71,3.29219011]
[1739786013294,3.91469,184.74,184.72,3.29219011]
[1739786014863,4.16567,184.74,184.73,3.29219011]
[1739786015481,0.37647,184.74,184.73,3.29219011]
[1739786015691,0.25098,184.74,184.73,3.29219011]
[1739786019976,4.04008,184.74,184.73,3.29219011]
[1739786020586,0.25098,184.74,184.73,3.29219011]
[1739786020777,82.3,184.76,184.73,3.29219011]
[1739786021518,0.25098,184.76,184.73,3.29219011]
[1739786022315,0.25098,184.76,184.74,3.29219011]
[1739786022611,0.37647,184.76,184.74,3.29219011]
[1739786022979,4.16527,184.76,184.74,3.29219011]
[1739786024098,4.16527,184.76,184.75,3.29219011]
[1739786024613,14.30613996,184.76,184.75,3.29219011]
[1739786025588,15.11576633,184.76,184.75,3.29219011]
[1739786027376,15.11576633,184.76,184.71,0.03]
[1739786027377,0.25098,184.74,184.71,0.03]
[1739786028883,0.25098,184.74,184.72,3.30873959]
[1739786029507,0.12549,184.73,184.72,3.30873959]
[1739786030818,3.91479,184.73,184.72,3.30873959]
[1739786031019,92.44086996,184.75,184.72,3.30873959]
[1739786031180,82.3,184.75,184.72,3.30873959]
[1739786032502,82.3,184.75,184.73,3.30873959]
[1739786034420,82.42549,184.75,184.74,3.30873959]
[1739786035334,82.3,184.75,184.74,3.30873959]
[1739786036343,0.12549,184.76,184.74,3.30873959]
[1739786036727,0.25098,184.76,184.74,3.30873959]
[1739786037147,10.39184996,184.76,184.74,3.30873959]
[1739786037449,0.25098,184.76,184.75,3.30873959]
[1739786042655,14.30593996,184.76,184.75,3.30873959]
[1739786042863,96.60593996,184.76,184.75,3.30873959]
[1739786043353,96.60593996,184.76,184.75,3.33873959]
[1739786044033,96.60593996,184.76,184.75,0.03]
[1739786045035,97.41556633,184.76,184.75,0.03]
[1739786048357,15.11556633,184.76,184.75,0.03]
[1739786069049,4.97469637,184.76,184.75,0.03]
[1739786069250,15.11556633,184.76,184.75,0.03]
[1739786075974,14.30593996,184.76,184.75,0.03]
[1739786076165,10.51733996,184.76,184.75,0.03]
[1739786076356,0.37647,184.76,184.75,0.03]
[1739786076854,4.16507,184.76,184.75,0.03]
[1739786077255,14.30593996,184.76,184.75,0.03]
[1739786079978,14.30593996,184.76,184.75,0.03]
[1739786080166,0.37647,184.76,184.75,0.03]
[1739786081071,4.16507,184.76,184.75,3.33437144]
[1739786081275,14.30593996,184.76,184.75,3.33437144]
[1739786081885,0.37647,184.76,184.75,3.33437144]
[1739786085382,0.12549,184.76,184.75,3.33437144]
[1739786085591,0.063,184.77,184.75,3.33437144]
[1739786085888,0.063,184.77,184.76,10.14086996]
[1739786086867,0.063,184.77,184.76,28.39098993]
[1739786087075,0.063,184.8,184.77,13.41184853]
[1739786087257,0.063,184.8,184.79,10.14086996]
[1739786087887,0.063,184.8,184.79,13.92886996]
[1739786088292,0.063,184.8,184.79,17.2332414]
[1739786088666,0.063,184.8,184.79,30.64508993]
[1739786091394,0.063,184.8,184.79,13.4452414]
[1739786091784,0.063,184.8,184.79,17.2332414]
[1739786093187,0.063,184.8,184.79,13.4452414]
[1739786094976,0.063,184.8,184.79,3.30437144]
[1739786095300,10.45484996,184.8,184.79,3.30437144]
[1739786095881,10.45484996,184.8,184.76,3.30437144]
[1739786096081,10.14086996,184.79,184.76,3.30437144]
[1739786096286,0.12549,184.78,184.76,3.30437144]
[1739786096483,10.39184996,184.78,184.76,3.30437144]
[1739786096676,10.26635996,184.77,184.76,3.30437144]
[1739786097285,14.30573996,184.77,184.76,3.30437144]
[1739786097499,0.12549,184.76,184.75,0.03]
[1739786097797,10.26635996,184.76,184.75,0.03]
[1739786098003,10.51733996,184.76,184.75,0.03]
[1739786099288,14.30593996,184.76,184.75,0.03]
[1739786108615,15.11556633,184.76,184.75,0.03]
[1739786111009,21.36126633,184.76,184.75,0.03]
[1739786111201,22.36126633,184.76,184.75,0.03]
[1739786111402,158.86126633,184.76,184.75,0.03]
[1739786111618,158.05163996,184.76,184.75,0.03]
[1739786112513,157.05163996,184.76,184.75,0.03]
[1739786112717,158.05163996,184.76,184.75,0.03]
[1739786113491,35.96348849,184.76,184.75,0.0001]
[1739786113690,35.96348849,184.76,184.71,0.03]
[1739786113691,20.37647,184.72,184.71,0.03]
[1739786113908,168.82696633,184.72,184.71,0.03]
[1739786114099,168.01733996,184.72,184.71,0.03]
[1739786114303,167.01733996,184.72,184.71,0.03]
[1739786114502,182.42918849,184.72,184.71,0.03]
[1739786114699,0.37647,184.7,184.69,0.03]
[1739786114892,26.73881486,184.7,184.68,0.03]
[1739786115107,202.99266833,184.69,184.68,0.03]
[1739786115415,209.36576833,184.69,184.68,0.03]
[1739786115617,0.37647,184.65,184.59,0.03]
[1739786115819,0.37647,184.6,184.59,0.03]
[1739786116611,10.51733996,184.6,184.59,0.03]
[1739786116816,17.57696633,184.6,184.59,0.03]
[1739786117013,21.36886633,184.6,184.59,0.03]
[1739786117198,14.30923996,184.6,184.59,0.03]
[1739786119606,10.51733996,184.6,184.59,0.03]
[1739786120120,14.30923996,184.6,184.59,0.03]
[1739786120621,10.51733996,184.6,184.59,0.03]
[1739786120821,0.37647,184.6,184.59,0.03]
[1739786121126,11.32696633,184.6,184.59,0.03]
[1739786122326,15.11886633,184.6,184.59,0.03]
[1739786122905,14.30923996,184.6,184.59,0.03]
[1739786125743,15.11886633,184.6,184.59,0.03]
[1739786128109,56.68234617,184.6,184.59,0.03]
[1739786128317,69.0941947,184.6,184.59,0.03]
[1739786128517,70.0941947,184.6,184.59,0.03]
[1739786129003,69.0941947,184.6,184.59,0.03]
[1739786129819,15.11886633,184.6,184.59,0.03]
[1739786130309,16.11886633,184.6,184.59,0.03]
[1739786130509,15.11886633,184.6,184.59,0.03]
[1739786132233,14.30923996,184.6,184.59,0.03]
[1739786133832,15.11886633,184.6,184.59,0.03]
[1739786134024,71.0941947,184.6,184.59,0.03]
[1739786135357,15.78831853,184.59,184.58,0.03]
[1739786135530,66.49266833,184.59,184.58,0.03]
[1739786136758,51.0808198,184.59,184.58,0.03]
[1739786137249,52.0808198,184.59,184.58,0.03]
[1739786137437,55.8729198,184.59,184.58,0.03]
[1739786140271,54.8729198,184.59,184.58,0.03]
[1739786140478,55.8729198,184.59,184.58,0.03]
[1739786143449,70.28476833,184.59,184.58,0.03]
[1739786152062,69.28476833,184.59,184.58,0.03]
[1739786152274,71.0943947,184.59,184.58,0.03]
[1739786152581,70.0943947,184.59,184.58,0.03]
[1739786152785,55.68254617,184.59,184.58,0.03]
[1739786152987,15.11906633,184.59,184.58,0.03]
[1739786153292,54.8729198,184.59,184.58,0.03]
[1739786154592,55.68254617,184.59,184.58,0.03]
[1739786155591,56.68254617,184.59,184.58,0.03]
[1739786155795,55.68254617,184.59,184.58,0.03]
[1739786155977,54.8729198,184.59,184.58,0.03]
[1739786156168,55.68254617,184.59,184.58,0.03]
[1739786157696,14.30943996,184.59,184.58,0.03]
[1739786158075,24.45030992,184.59,184.58,0.03]
[1739786158399,55.68254617,184.59,184.58,0.03]
[1739786159885,69.0943947,184.59,184.58,0.03]
[1739786160195,70.0943947,184.59,184.58,0.03]
[1739786160380,70.1573947,184.59,184.58,0.03]
[1739786161008,20.0,184.57,184.56,0.03]
[1739786161296,10.51733996,184.47,184.45,1.5787]
[1739786162196,10.51733996,184.47,184.46,3.30240557]
[1739786162683,10.14086996,184.49,184.46,3.30240557]
[1739786162998,136.5,184.53,184.46,3.30240557]
[1739786162999,10.14086996,184.5,184.46,3.30240557]
[1739786163196,0.37647,184.49,184.46,3.30240557]
[1739786163568,10.14086996,184.52,184.46,13.44327553]
[1739786163890,10.14086996,184.54,184.48,16.21206996]
[1739786164404,0.25098,184.55,184.49,11.79786996]
[1739786164575,0.12549,184.54,184.5,10.14086996]
[1739786164979,10.14086996,184.56,184.5,10.14086996]
[1739786165295,10.14086996,184.56,184.5,13.93476996]
[1739786165471,0.12549,184.55,184.51,3.29910065]
[1739786166170,10.51733996,184.55,184.51,3.29910065]
[1739786166371,10.14086996,184.53,184.51,3.29910065]
[1739786166787,0.12549,184.52,184.51,3.29910065]
[1739786166997,10.51733996,184.52,184.51,3.29910065]
[1739786167171,14.31093996,184.52,184.51,3.29910065]
[1739786168587,14.31093996,184.52,184.49,1.657]
[1739786168782,10.39184996,184.5,184.49,1.657]
[1739786169296,0.37647,184.49,184.45,1.6165]
[1739786169473,10.51733996,184.46,184.45,1.6165]
[1739786170005,10.14086996,184.49,184.45,1.6165]
[1739786170305,10.14086996,184.5,184.45,1.6165]
[1739786170605,0.12549,184.49,184.45,1.6165]
[1739786170785,0.12549,184.49,184.46,3.29551311]
[1739786170984,10.26635996,184.49,184.46,3.29551311]
[1739786171488,0.12549,184.47,184.46,3.29551311]
[1739786172388,10.14086996,184.5,184.46,3.29551311]
[1739786172710,0.12549,184.49,184.46,3.29551311]
[1739786174689,0.12549,184.49,184.47,3.29551311]
[1739786175901,10.14086996,184.51,184.47,3.29551311]
[1739786177300,10.14086996,184.49,184.47,3.29551311]
[1739786177613,10.26635996,184.49,184.48,3.29551311]
[1739786179028,14.06055996,184.49,184.48,3.29551311]
[1739786179207,14.31153996,184.49,184.48,3.29551311]
[1739786182517,15.12116633,184.49,184.48,3.29551311]
[1739786183116,15.12116633,184.49,184.4,81.53]
[1739786183319,0.37647,184.48,184.4,0.03]
[1739786183516,10.14086996,184.45,184.4,0.03]
[1739786183822,0.12549,184.45,184.4,0.03]
[1739786185011,0.12549,184.45,184.41,3.29714933]
[1739786185216,10.14086996,184.47,184.41,17.23381929]
[1739786185419,10.14086996,184.48,184.41,17.23381929]
[1739786185920,0.12549,184.47,184.42,10.14086996]
[1739786186123,0.12549,184.47,184.41,17.23381929]
[1739786186721,10.14086996,184.48,184.41,17.23381929]
[1739786186927,82.3,184.51,184.45,10.14086996]
[1739786186928,92.44086996,184.51,184.45,10.14086996]
[1739786187217,10.14086996,184.5,184.44,10.14086996]
[1739786187403,10.26635996,184.49,184.42,26.84986782]
[1739786188018,0.12549,184.49,184.45,3.29714933]
[1739786189325,0.12549,184.49,184.46,3.29714933]
[1739786190627,14.06065996,184.49,184.46,3.29714933]
[1739786190813,10.26635996,184.49,184.46,3.29714933]
[1739786191119,0.12549,184.49,184.47,3.29714933]
[1739786192320,0.12549,184.49,184.43,13.93626996]
[1739786192530,0.12549,184.47,184.41,13.93656996]
[1739786192705,0.12549,184.47,184.41,10.14086996]
[1739786193215,3.92009,184.47,184.41,10.14086996]
[1739786193626,0.12549,184.47,184.41,13.93666996]
[1739786193836,0.12549,184.47,184.42,3.2969205]
[1739786194329,14.06095996,184.47,184.42,3.2969205]
[1739786195523,14.06095996,184.47,184.43,3.2969205]
[1739786195831,3.92009,184.47,184.43,3.2969205]
[1739786196349,0.12549,184.47,184.43,3.2969205]
[1739786197429,0.12549,184.47,184.44,3.2969205]
[1739786197934,0.25098,184.49,184.44,3.2969205]
[1739786197935,10.14086996,184.49,184.44,3.2969205]
[1739786198313,0.25098,184.51,184.44,3.2969205]
[1739786198513,0.25098,184.51,184.45,10.14086996]
[1739786198838,0.12549,184.5,184.45,10.14086996]
[1739786199014,0.12549,184.5,184.46,3.2969205]
[1739786200230,3.91949,184.5,184.46,3.2969205]
[1739786200738,3.91949,184.5,184.47,3.2969205]
[1739786201230,0.12549,184.5,184.47,3.2969205]
[1739786202338,3.91949,184.5,184.47,3.2969205]
[1739786202516,3.91949,184.5,184.48,3.2969205]
[1739786203942,3.91949,184.5,184.44,13.93606996]
[1739786204744,3.91949,184.5,184.44,10.14086996]
[1739786205416,3.91949,184.5,184.43,13.93626996]
[1739786205618,3.91949,184.5,184.45,3.30250797]
[1739786206027,14.06035996,184.5,184.45,3.30250797]
[1739786207038,0.12549,184.48,184.45,3.30250797]
[1739786207539,0.12549,184.48,184.46,3.30250797]
[1739786208437,3.92009,184.47,184.46,3.30250797]
[1739786208836,3.92009,184.47,184.42,10.14086996]
[1739786209024,3.92009,184.47,184.41,23.58271849]
[1739786210146,3.92009,184.47,184.42,3.30271287]
[1739786211642,3.92009,184.47,184.43,3.30271287]
[1739786213441,3.92009,184.47,184.44,3.30271287]
[1739786214927,3.92009,184.47,184.45,3.30271287]
[1739786216727,3.92009,184.47,184.46,3.30271287]
[1739786218863,9.4841,184.52,184.46,3.30271287]
[1739786218864,10.14086996,184.5,184.46,3.30271287]
[1739786219042,13.93446996,184.52,184.46,13.44358283]
[1739786219360,0.12549,184.51,184.46,13.44358283]
[1739786219732,0.12549,184.51,184.46,13.47358283]
[1739786219962,0.12549,184.51,184.47,3.30271287]
[1739786220756,10.29212637,184.55,184.48,10.14086996]
[1739786220757,13.93386996,184.55,184.48,10.14086996]
[1739786221057,0.37647,184.54,184.49,10.14086996]
[1739786221368,0.37647,184.54,184.48,10.14086996]
[1739786221544,10.51733996,184.54,184.47,13.44358283]
[1739786222362,10.51733996,184.54,184.49,3.30271287]
[1739786222557,3.7934,184.53,184.49,3.30271287]
[1739786223762,10.51733996,184.52,184.5,3.30271287]
[1739786223945,10.26635996,184.51,184.5,3.30271287]
[1739786224263,10.51733996,184.51,184.5,3.30271287]
[1739786224452,14.31113996,184.51,184.5,3.30271287]
[1739786225365,14.18564996,184.51,184.46,0.03]
[1739786225545,0.12549,184.51,184.46,10.17086996]
[1739786226273,13.93426996,184.54,184.47,23.55271849]
[1739786226442,3.7934,184.54,184.48,10.14086996]
[1739786226646,3.793,184.55,184.49,10.14086996]
[1739786227366,13.99666996,184.56,184.49,10.14086996]
[1739786227551,0.12549,184.55,184.5,10.14086996]
[1739786227751,0.12549,184.55,184.5,13.44107932]
[1739786227947,0.063,184.56,184.52,10.14086996]
[1739786228158,0.063,184.56,184.53,10.14086996]
[1739786229162,0.063,184.56,184.54,3.30020936]
[1739786229669,0.063,184.56,184.55,10.14086996]